Cogmind - Beta 9.6 @@@ ROGUE MODE // 2020.05.11 @ 13:08:27 Player: RNGesus Result: Destroyed by S-43 Plague with Heavy Machine Gun Performance ------------- Evolutions (8) 4000 Regions Visited (19) 3800 Robots Destroyed (242) 1210 Value Destroyed (9886) 9886 Prototype IDs (37) 740 Alien Tech Used (0) 0 Bonus (4542) 4542 TOTAL SCORE: 24178 Bonus ------- High Alert Combat Kills 1114 Follower Combat Kills 912 Entered Garrisons 800 Used RIF Installer 1500 Aligned with FarCom 300 Friendly Fire -84 Cogmind --------- Core Integrity 0/1450 Matter 300/300 Energy 99/100 System Corruption 0% Temperature Cool (0) Movement Core (50) Location -2/Garrison Parts ------- > --- POWER (2) -------- (None) > --- PROPULSION (5) --- (None) > --- UTILITY (12) ----- Advanced Signal Interpreter Relay Coupler [NC] (33) > --- WEAPON (4) ------- (None) > --- INVENTORY (4) ---- Heavy Armor Plating Improved Datajack Welding Torch Peak State ------------ > --- POWER ------------ Light Antimatter Reactor Particle Reactor > --- PROPULSION ------- Medium Treads Heavy Treads Biometal Medium Treads Centrium Wheel > --- UTILITY ---------- Advanced Cryofiber Web Advanced Heat Sink Large Storage Unit Large Storage Unit Advanced Signal Interpreter Advanced Targeting Computer Layered Heavy Armor Plating Relay Coupler [NC] Relay Coupler [NC] Relay Coupler [Grunt] > --- WEAPON ----------- Long-range Phase Cannon YOLO Cannon Advanced EMP Blaster > --- INVENTORY -------- Myomer Leg Advanced Heat Sink Advanced Heat Sink Matter Compressor Heavy Armor Plating Relay Coupler [NC] Relay Coupler [NC] Relay Coupler [Sentry] 01-MTF's Autohacker Rocket Array Improved Datajack Welding Torch Chainsword [Rating: 120] Favorites ----------- Power Improved Deuterium Engine Engine Improved Deuterium Engine Power Core Light Nuclear Core Reactor Light Antimatter Reactor Propulsion Armored Treads Treads Armored Treads Leg Flexi-carbon Leg Wheel Armored Wheel Utility Large Storage Unit Device Advanced Heat Sink Storage Large Storage Unit Processor Advanced Visual Processing Unit Hackware Relay Coupler [NC] Protection Improved Medium Armor Plating Weapon Autogun Energy Gun Heavy EM Shotgun Energy Cannon YOLO Cannon Ballistic Gun Autogun Launcher Advanced EMP Blaster Special Weapon Improved Remote Datajack Slashing Weapon Chainsword Special Melee Weapon Improved Datajack Build | -11 -10 -10 -9 -9 -9 -8 -8 -8 -8 -7 -7 -7 -7 -5 -5 -4 -3 -2 -2 ------- Run | Scr Mat Min Mat Min Exi Min Mat Gar Mat Fac Sto Gar Rec Fac Gar Fac Res Res Gar Slots Evolved 16 | . . . 2 . . . 2 . . 2 . . . 4 . 2 2 2 . Power 1 | . . . . . . . . . . . . . . . . 1 . . . Propulsion 3 | . . . . . . . . . . 1 . . . . . . 1 1 . Utility 10 | . . . 2 . . . 2 . . 1 . . . 3 . 1 . 1 . Weapon 2 | . . . . . . . . . . . . . . 1 . . 1 . . Parts Attached 269 | 6 5 . 11 9 . . 28 4 15 21 31 10 5 36 19 51 11 3 4 Power 25 | 1 . . 1 1 . . 4 . 2 2 1 . . 3 1 7 2 . . Engine 8 | 1 . . . . . . 1 . . 2 1 . . 1 1 1 . . . Core 13 | . . . 1 1 . . 3 . 2 . . . . 2 . 4 . . . Reactor 4 | . . . . . . . . . . . . . . . . 2 2 . . Propulsion 41 | 2 . . 4 2 . . 6 1 1 3 2 2 . 3 4 7 3 1 . Treads 29 | 2 . . 3 1 . . 5 1 1 3 2 2 . 2 2 3 1 1 . Leg 7 | . . . . . . . . . . . . . . . 2 4 1 . . Wheel 5 | . . . 1 1 . . 1 . . . . . . 1 . . 1 . . Hover . | . . . . . . . . . . . . . . . . . . . . Flight . | . . . . . . . . . . . . . . . . . . . . Utility 77 | 1 3 . 5 3 . . 7 2 5 3 8 1 1 13 6 12 4 1 2 Device 20 | . . . 1 1 . . 2 . . . . . . 6 1 6 1 1 1 Storage 15 | 1 2 . 3 . . . 1 2 3 1 . . . 2 . . . . . Processor 8 | . 1 . . . . . 1 . . . . 1 . 1 1 2 1 . . Hackware 18 | . . . . . . . 1 . . 1 5 . 1 1 3 3 2 . 1 Protection 16 | . . . 1 2 . . 2 . 2 1 3 . . 3 1 1 . . . Artifact . | . . . . . . . . . . . . . . . . . . . . Weapon 126 | 2 2 . 1 3 . . 11 1 7 13 20 7 4 17 8 25 2 1 2 Energy Gun 29 | 1 . . . . . . 3 . 1 3 3 1 1 2 2 11 . . 1 Energy Cannon 4 | . . . . . . . . . . 1 . . . . . 1 . 1 1 Ballistic Gun 47 | 1 2 . 1 2 . . 7 1 4 3 9 3 2 4 2 6 . . . Ballistic Cannon . | . . . . . . . . . . . . . . . . . . . . Launcher 12 | . . . . 1 . . 1 . 2 1 1 1 . 1 1 2 1 . . Special Weapon 19 | . . . . . . . . . . 2 2 1 1 7 1 5 . . . Impact Weapon . | . . . . . . . . . . . . . . . . . . . . Slashing Weapon 11 | . . . . . . . . . . 1 4 1 . 3 2 . . . . Piercing Weapon . | . . . . . . . . . . . . . . . . . . . . Special Melee Weapon 4 | . . . . . . . . . . 2 1 . . . . . 1 . . Unidentified Prototypes 13 | . . . . . . . 4 . 1 1 . . . 4 . 2 . 1 . Parts Lost 95 | . . . 3 9 . . 8 1 4 4 3 2 . 8 6 32 1 . 14 Power 18 | . . . 1 1 . . 3 . 2 1 1 . . 1 1 4 1 . 2 Propulsion 21 | . . . 1 3 . . 2 . 1 1 . 2 . 1 2 5 . . 3 Utility 28 | . . . . 3 . . 2 . 1 1 2 . . 3 2 8 . . 6 Weapon 28 | . . . 1 2 . . 1 1 . 1 . . . 3 1 15 . . 3 Highest Loss Streak 14 | . . . 2 2 . . 3 1 2 2 2 1 . 4 4 7 1 . 14 Average Slot Usage (%) 92 | . 96 100 97 87 77 77 94 99 99 93 98 92 90 89 92 85 81 83 78 Engine 5 | . 14 14 10 . . . 2 . . 6 6 7 7 3 4 1 . . . Core 2 | . . . . 10 11 11 4 9 8 . . . . 1 . 4 1 . . Treads 15 | . 28 28 21 10 . . 11 18 17 22 22 21 15 6 5 3 5 13 11 Wheel 1 | . . . . 8 11 11 6 . . . . . . 3 2 . 4 4 3 Device 2 | . . . . 6 11 11 2 . . . . . . 6 6 7 10 9 11 Storage 24 | . 14 14 22 22 22 22 26 27 34 30 30 30 30 23 23 17 9 8 7 Processor 8 | . 10 14 11 2 . . 8 9 9 7 7 15 15 11 6 7 5 8 7 Hackware 4 | . . . . . . . 8 9 1 2 5 . 5 5 11 17 16 13 12 Protection 5 | . . . 8 9 11 11 3 9 9 7 6 1 . 5 4 1 4 4 3 Energy Gun 3 | . 7 . . . . . 3 9 6 6 2 1 . . 4 6 . . . Ballistic Gun 11 | . 20 28 22 18 11 11 13 8 10 6 5 10 14 12 4 4 . . . Naked Turns . | . . . . . . . . . . . . . . . . . . . . Heaviest Build 128 | 13 19 19 50 50 42 42 65 65 88 105 107 106 100 120 113 128 109 109 103 Greatest Support 133 | 40 40 40 40 40 12 12 40 40 40 62 62 62 42 42 46 70 105 133 133 Greatest Overweight (x) 6 | . . . 1 3 3 3 2 1 3 1 1 2 2 5 5 5 6 . 1 Average Overweight (x) 1 | . . . . 2 3 3 1 1 1 1 1 1 2 3 3 1 3 . . Largest Inventory Capacity 36 | 6 8 8 16 16 16 16 22 22 28 36 30 30 30 30 30 30 16 16 16 Average Capacity 23 | 5 6 8 13 16 16 16 21 22 27 29 30 30 30 30 30 25 16 16 15 Most Carried 30 | 4 7 8 15 14 15 16 22 22 28 30 30 30 30 29 29 30 15 14 16 Average Carried 21 | 1 6 7 11 12 13 15 19 21 24 27 29 29 29 25 26 23 10 13 14 Final Capacity 30 | 6 8 8 16 16 16 16 22 22 28 30 30 30 30 30 30 16 16 16 4 Final Carried 30 | 4 7 8 15 13 15 16 21 22 28 29 29 30 29 24 29 14 13 14 4 Class Distribution -------------------- 35% | Bothacker-Mutant 34% | Hauler-Mutant 25% | Mutant Dominant Class ---------------- Mutant | -10/Materials Mutant | -10/Mines Mutant | -9/Materials Mutant | -9/Mines Mutant | -9/Exiles Mutant | -8/Mines Hauler-Mutant | -8/Materials Hauler-Mutant | -8/Garrison Hauler-Mutant | -8/Materials Hauler-Mutant | -7/Factory Bothacker-Mutant | -7/Storage Bothacker-Mutant | -7/Garrison Bothacker-Mutant | -7/Recycling Hauler-Mutant | -5/Factory Bothacker-Mutant | -5/Garrison Bothacker-Mutant | -4/Factory Bothacker-Mutant | -3/Research Bothacker-Mutant | -2/Research Bothacker-Mutant | -2/Garrison Resources | -11 -10 -10 -9 -9 -9 -8 -8 -8 -8 -7 -7 -7 -7 -5 -5 -4 -3 -2 -2 ----------- Run | Scr Mat Min Mat Min Exi Min Mat Gar Mat Fac Sto Gar Rec Fac Gar Fac Res Res Gar Matter Collected 7896 | 181 275 208 368 767 . 16 577 74 513 420 907 619 278 1006 535 987 45 . 120 Remotely . | . . . . . . . . . . . . . . . . . . . . Salvage Created 10932 | . 472 201 738 567 . . 900 273 925 828 962 776 272 1274 631 1938 83 . 92 Parts 513 | . 26 8 51 25 . . 48 9 53 45 60 37 12 52 20 58 3 . 6 Haulers Intercepted 11 | . 1 . 2 . . . 3 . 2 1 1 . . . . 1 . . . Recyclers Shooed 13 | . 1 . . . . 1 3 . . 1 1 . . 2 . 4 . . . Parts Field Recycled . | . . . . . . . . . . . . . . . . . . . . Retrieved Matter . | . . . . . . . . . . . . . . . . . . . . Parts Self-Destructed . | . . . . . . . . . . . . . . . . . . . . Prevented . | . . . . . . . . . . . . . . . . . . . . Kills | -11 -10 -10 -9 -9 -9 -8 -8 -8 -8 -7 -7 -7 -7 -5 -5 -4 -3 -2 -2 ------- Run | Scr Mat Min Mat Min Exi Min Mat Gar Mat Fac Sto Gar Rec Fac Gar Fac Res Res Gar Combat Hostiles Destroyed 186 | . 15 4 14 20 . . 15 5 19 11 16 16 1 14 9 23 1 . 3 Melee 1 | . . . . . . . . . . . 1 . . . . . . . . Guns 164 | . 15 4 14 18 . . 15 5 19 11 12 13 1 12 7 18 . . . Cannons 3 | . . . . . . . . . . . . . . . . 1 1 . 1 AOE 13 | . . . . 2 . . . . . . 3 . . 2 . 4 . . 2 Classes Destroyed 19 | . 3 1 4 2 . . 1 . 2 3 . . 1 1 . 1 . . . Worker 11 | . . . 2 . . . 1 . 3 . 3 . . 2 . . . . . Builder 14 | . . . 1 1 . . 1 . 1 1 2 . . 5 . 2 . . . Tunneler 1 | . . 1 . . . . . . . . . . . . . . . . . Hauler 11 | . 1 . 2 . . . 3 . 2 1 1 . . . . 1 . . . Recycler 14 | . . . . . . . . . . 2 . . 4 5 . 3 . . . Operator 3 | . . . . . . . . . . 1 2 . . . . . . . . Drone 1 | . . . . . . . . . . . . . 1 . . . . . . Watcher 2 | . . . . . . . 1 . . 1 . . . . . . . . . Swarmer 26 | . 8 . 3 . . . 3 . 5 . 1 3 . . . . . . 3 Saboteur 2 | . . . . . . . . . . . . . . 1 . 1 . . . Grunt 86 | . 7 4 7 8 . . 5 5 7 3 9 10 . 9 5 7 . . . Brawler 8 | . . . . . . . . . 1 . 1 1 . 2 . 3 . . . Duelist 6 | . . . 1 2 . . 1 . . 1 . . . . . 1 . . . Protector 1 | . . . . . . . . . . . . . . . . 1 . . . Sentry 27 | . . . 3 . . . 6 . 4 3 2 2 . . 4 2 1 . . Demolisher 2 | . . . . 1 . . . . . . 1 . . . . . . . . Hunter 8 | . . . . . . . . . 2 1 1 . . . . 4 . . . Programmer 10 | . . . . . . . . . . 3 1 . . 2 . 4 . . . Assembled 9 | . . . . 9 . . . . . . . . . . . . . . . Best Kill Streak 8 | . 3 2 5 4 . . 4 2 6 4 7 4 4 8 4 5 1 . 3 Combat Bots Only 5 | . 3 2 4 4 . . 4 2 5 3 4 4 1 4 4 5 1 . 3 Max Kills in Single Turn 3 | . 2 2 2 2 . . 1 1 3 2 3 2 1 3 1 3 1 . 2 Gunslinging 1 | . 1 1 . . . . . . . . . . . . . . . . . Exploded 3 | . . . . 1 . . . . . . 3 . . 1 . 3 . . 1 Melee 1 | . . . . . . . . . . . 1 . . . . . . . . Uniques/NPCs Destroyed . | . . . . . . . . . . . . . . . . . . . . Combat | -11 -10 -10 -9 -9 -9 -8 -8 -8 -8 -7 -7 -7 -7 -5 -5 -4 -3 -2 -2 -------- Run | Scr Mat Min Mat Min Exi Min Mat Gar Mat Fac Sto Gar Rec Fac Gar Fac Res Res Gar Damage Taken 20227 | . 356 93 551 1046 . . 1091 220 1110 1719 1493 992 . 1692 1182 4872 338 . 3472 Core 3295 | . 34 12 18 160 . . 102 . 133 164 159 160 . 152 224 527 . . 1450 Absorbed by Shields 152 | . . . . . . . . 35 . . . . . . . . . . 117 Reduced by Siege Mode 520 | . . . . . . . . . . . . . . . . 488 . . 32 Core Remaining (%) 67 | 100 . 81 . . . 55 . . 57 . . . 31 . 62 54 100 . . Volleys Fired 881 | . 45 8 49 83 . 2 65 19 66 91 92 71 17 85 55 111 2 . 20 Largest 3 | . 2 2 2 2 . 1 2 2 2 2 2 2 1 3 2 3 1 . 3 Hottest 241 | . 70 46 46 46 . 23 73 73 91 130 113 91 40 99 93 176 100 . 241 Shots Fired 1520 | . 90 16 97 133 . 2 130 32 127 155 126 115 19 170 97 184 2 . 25 Gun 1408 | . 90 16 97 130 . 2 130 32 126 146 103 109 17 151 87 172 . . . Cannon 29 | . . . . . . . . . . 1 . . . . . 3 2 . 23 Launcher 18 | . . . . 3 . . . . 1 . 2 4 . 5 . 1 . . 2 Special 65 | . . . . . . . . . . 8 21 2 2 14 10 8 . . . Kinetic 1097 | . 76 16 97 130 . 2 111 13 92 85 80 102 17 150 49 77 . . . Thermal 184 | . 14 . . . . . . . 34 46 4 7 . . . 54 2 . 23 Explosive 9 | . . . . 3 . . . . . . . . . 5 . 1 . . . Electromagnetic 165 | . . . . . . . 19 19 1 16 21 4 . 1 38 44 . . 2 Robot Hit Streak 28 | . 15 13 23 12 . 1 15 8 17 23 20 28 4 9 13 26 5 . 14 Robot Miss Streak 7 | . 5 1 5 4 . 1 3 2 5 5 5 1 4 7 2 7 . . 1 Penetration Max 1 | . . . . . . . . . 1 1 . . . . . 1 . . . Secondary Targets 27 | . 1 1 2 5 . . 2 . 3 1 1 3 . 5 . 3 . . . Max Gunslinging Chain 1 | . 1 1 1 1 . . 1 . 1 1 1 1 . 1 . 1 . . . Shots Hit Robots 1090 | . 56 14 68 85 . 1 96 24 87 128 117 71 8 96 66 141 15 . 17 Core Hits 486 | . 23 8 26 40 . . 39 13 40 46 60 30 5 51 21 77 1 . 6 Critical Hits 23 | . . . 1 3 . . 1 1 1 1 . . . 1 3 9 . . 2 Critical Kills 6 | . . . 1 2 . . . 1 . . . . . . . 2 . . . Critical Parts Destroyed 15 | . . . . 1 . . 1 . 1 1 . . . 1 3 7 . . . Melee Attacks 62 | . . . . . . . . . . 8 28 4 . 6 2 . 14 . . Impact . | . . . . . . . . . . . . . . . . . . . . Slashing 39 | . . . . . . . . . . 3 24 4 . 6 2 . . . . Piercing . | . . . . . . . . . . . . . . . . . . . . Sneak Attacks 21 | . . . . . . . . . . 3 5 . . 2 . . 11 . . Combat Hostiles . | . . . . . . . . . . . . . . . . . . . . Follow-up Attacks . | . . . . . . . . . . . . . . . . . . . . Damage Inflicted 26290 | . 747 189 994 1557 . 14 1600 420 2095 2347 2212 1760 203 3064 1511 5195 369 . 2013 Guns 19862 | . 747 189 994 1245 . 14 1563 371 2051 2253 1768 1417 203 2101 1364 3582 . . . Cannons 1837 | . . . . . . . . . . . . . . . . 372 234 . 1231 Explosions 4184 | . . . . 312 . . 37 49 44 94 306 343 . 700 147 1235 135 . 782 Melee 378 | . . . . . . . . . . . 138 . . 240 . . . . . Ramming 29 | . . . . . . . . . . . . . . 23 . 6 . . . Kinetic 14587 | . 635 189 994 1245 . 14 1159 99 1559 1207 1477 1348 203 2101 690 1667 . . . Thermal 6112 | . 112 . . . . . 37 49 492 839 104 69 . . 147 1940 369 . 1954 Explosive 1755 | . . . . 312 . . . . . . . . . 700 . 743 . . . Electromagnetic 3429 | . . . . . . . 404 272 44 301 493 343 . . 674 839 . . 59 Impact . | . . . . . . . . . . . . . . . . . . . . Slashing 378 | . . . . . . . . . . . 138 . . 240 . . . . . Piercing . | . . . . . . . . . . . . . . . . . . . . Highest Corruption 21 | . 2 2 . 5 5 5 . . . 4 10 10 10 4 4 21 . . . Average Corruption 5 | . 2 2 . 4 5 5 . . . 3 4 10 10 3 4 10 . . . Corruption Purged . | . . . . . . . . . . . . . . . . . . . . Effects 288 | . 5 9 . 25 14 11 . . . 14 45 65 33 3 15 49 . . . Message Errors 71 | . 1 3 . 4 6 4 . . . 5 12 16 6 . 5 9 . . . Matter Fused 50 | . . . . 6 2 1 . . . 2 11 14 3 2 3 6 . . . Heat Flow Errors 25 | . 1 . . 5 3 1 . . . . 1 5 3 . 1 5 . . . Energy Discharges 36 | . 1 3 . 2 1 4 . . . 2 5 5 8 1 2 2 . . . Parts Rejected 5 | . . . . . . . . . . . . 2 1 . . 2 . . . Data Loss (minor) 22 | . . 3 . 1 2 1 . . . . 6 2 3 . . 4 . . . Data Loss (major) 5 | . . . . . . . . . . . 1 2 1 . . 1 . . . Misfires 7 | . . . . 1 . . . . . . . 2 2 . . 2 . . . Alerts 2 | . . . . . . . . . . . . 1 . . . 1 . . . Misdirections 15 | . . . . . . . . . . . . 6 5 . . 4 . . . Targeting Errors 44 | . 2 . . 4 . . . . . 4 8 10 1 . 4 11 . . . Weapon Failures 6 | . . . . 2 . . . . . 1 1 . . . . 2 . . . Overload Shots . | . . . . . . . . . . . . . . . . . . . . Overflow Damage 279 | . . . . 5 . . . 44 . 6 . 14 . 108 . 58 . . 44 Projectiles 8 | . . . . . . . . . . . . . . . . 8 . . . Explosions 181 | . . . . 5 . . . 44 . 6 . 14 . 18 . 50 . . 44 Melee 90 | . . . . . . . . . . . . . . 90 . . . . . Knockbacks . | . . . . . . . . . . . . . . . . . . . . Impact . | . . . . . . . . . . . . . . . . . . . . Kinetic . | . . . . . . . . . . . . . . . . . . . . Secondary . | . . . . . . . . . . . . . . . . . . . . Self-Inflicted Damage 629 | . . . . 72 . . 31 . 25 . 35 . . 9 . 457 . . . Shots 16 | . . . . 3 . . 1 . 1 . 2 . . . . 9 . . . Rammed 4 | . . . . . . . . . . . . . . 2 . 2 . . . Targets Rammed 4 | . . . . . . . . . . . . . . 2 . 2 . . . Kicked . | . . . . . . . . . . . . . . . . . . . . Crushed . | . . . . . . . . . . . . . . . . . . . . Highest Temperature 450 | . 230 49 43 256 163 84 446 117 137 443 261 249 273 331 235 450 . . . Average Temperature 69 | . 31 21 11 51 79 49 82 49 45 83 43 72 69 109 57 130 . . . Received Heat Transfer 4479 | . 84 51 189 456 . . 378 120 306 372 294 330 . 624 381 525 36 . 333 Effects 12 | . . . . . . . 3 . . 1 . . . . . 8 . . . Shutdowns 2 | . . . . . . . . . . . . . . . . 2 . . . Energy Bleed 2 | . . . . . . . . . . 1 . . . . . 1 . . . Interference 3 | . . . . . . . . . . . . . . . . 3 . . . Matter Decay 1 | . . . . . . . . . . . . . . . . 1 . . . Damage (minor) 1 | . . . . . . . . . . . . . . . . 1 . . . Damage (major) 3 | . . . . . . . 3 . . . . . . . . . . . . Siege Activations 4 | . . . . . . . . . . . . . . . . 3 . . 1 Total Turns 107 | . . . . . . . . . . . . . . . . 97 . . 10 Longest Duration 66 | . . . . . . . . . . . . . . . . 66 . . 10 Robots Corrupted 5 | . . . . . . . . . . . . 3 . . 2 . . . . Combat Hostiles 5 | . . . . . . . . . . . . 3 . . 2 . . . . Parts Fried 18 | . . . . . . . . 1 . . 3 4 . 3 1 6 . . . Impact Corruptions 1 | . . . . . . . . . . . . . . 1 . . . . . Robots Melted . | . . . . . . . . . . . . . . . . . . . . Combat Hostiles . | . . . . . . . . . . . . . . . . . . . . Parts Melted 10 | . 2 . . . . . . . 3 2 . . . . . 2 . . 1 Heat Transferred 7994 | . 333 . . . . . 50 50 1073 1724 261 148 . . 100 2180 320 . 1755 Parts Sabotaged . | . . . . . . . . . . . . . . . . . . . . Parts Stolen . | . . . . . . . . . . . . . . . . . . . . Parts Stripped . | . . . . . . . . . . . . . . . . . . . . Power Chain Reactions 11 | . . . . . . . 1 1 . 1 4 . . . 1 2 . . 1 Missiles Intercepted . | . . . . . . . . . . . . . . . . . . . . Alert | -11 -10 -10 -9 -9 -9 -8 -8 -8 -8 -7 -7 -7 -7 -5 -5 -4 -3 -2 -2 ------- Run | Scr Mat Min Mat Min Exi Min Mat Gar Mat Fac Sto Gar Rec Fac Gar Fac Res Res Gar Peak Influence 1073 | . 252 79 180 159 . . 268 307 433 272 344 659 437 1073 934 754 489 274 334 Average Influence 278 | . 71 35 92 77 . . 113 198 253 111 122 436 324 823 766 600 406 274 255 Maximum Alert Level 3 | . 1 . . . . . 1 1 2 1 1 2 2 3 3 3 2 1 1 Low Security (%) 53 | 100 93 100 100 100 . 100 88 61 30 81 93 . . . . . . . . Level 1 19 | . 6 . . . . . 11 38 67 18 6 35 79 . . . 50 100 100 Level 2 18 | . . . . . . . . . 2 . . 64 20 20 31 95 49 . . Level 3 9 | . . . . . . . . . . . . . . 79 68 4 . . . Level 4 . | . . . . . . . . . . . . . . . . . . . . Level 5 . | . . . . . . . . . . . . . . . . . . . . High Security . | . . . . . . . . . . . . . . . . . . . . Max Security . | . . . . . . . . . . . . . . . . . . . . Squads Dispatched 41 | . 3 . . . . . 2 . 5 5 9 . . 5 . 11 1 . . Investigation 2 | . 1 . . . . . . . . . 1 . . . . . . . . Extermination 9 | . . . . . . . . . . 3 2 . . 1 . 2 1 . . Reinforcement 19 | . 2 . . . . . 2 . 2 2 6 . . 3 . 2 . . . Assault 5 | . . . . . . . . . . . . . . 1 . 4 . . . Garrison 6 | . . . . . . . . . 3 . . . . . . 3 . . . Intercept . | . . . . . . . . . . . . . . . . . . . . Construction Impeded 6 | . . . . . . . . . 1 1 . . . 2 . 2 . . . Haulers Reinforced 2 | . . . . . . . . . . . 2 . . . . . . . . Stealth | -11 -10 -10 -9 -9 -9 -8 -8 -8 -8 -7 -7 -7 -7 -5 -5 -4 -3 -2 -2 --------- Run | Scr Mat Min Mat Min Exi Min Mat Gar Mat Fac Sto Gar Rec Fac Gar Fac Res Res Gar Distress Signals 14 | . 2 . 1 . . . 1 . 1 1 6 . . 1 . 1 . . . Communications Jammed . | . . . . . . . . . . . . . . . . . . . . Distress Signals . | . . . . . . . . . . . . . . . . . . . . Times Spotted 400 | . 31 4 25 42 . . 29 4 30 26 48 24 25 21 23 40 4 . 24 Peak Tracking Total 18 | . 6 2 4 10 . . 5 2 6 7 5 4 4 6 5 7 3 . 18 Tactical Retreats 42 | . 1 . 1 8 . . 4 . 2 6 1 8 . . 6 3 . . 2 Traps | -11 -10 -10 -9 -9 -9 -8 -8 -8 -8 -7 -7 -7 -7 -5 -5 -4 -3 -2 -2 ------- Run | Scr Mat Min Mat Min Exi Min Mat Gar Mat Fac Sto Gar Rec Fac Gar Fac Res Res Gar Traps Triggered 24 | . 2 . . . . . . 3 . 3 3 6 . 1 3 1 . . 2 Indirectly . | . . . . . . . . . . . . . . . . . . . . Trap Hack Attempts . | . . . . . . . . . . . . . . . . . . . . Triggered . | . . . . . . . . . . . . . . . . . . . . Disarmed . | . . . . . . . . . . . . . . . . . . . . Reprogrammed . | . . . . . . . . . . . . . . . . . . . . Reused . | . . . . . . . . . . . . . . . . . . . . Traps Extracted . | . . . . . . . . . . . . . . . . . . . . Installed . | . . . . . . . . . . . . . . . . . . . . Triggered 1 | . . . . . . . . . . . . . . . 1 . . . . Machines | -11 -10 -10 -9 -9 -9 -8 -8 -8 -8 -7 -7 -7 -7 -5 -5 -4 -3 -2 -2 ---------- Run | Scr Mat Min Mat Min Exi Min Mat Gar Mat Fac Sto Gar Rec Fac Gar Fac Res Res Gar Machines Disabled 42 | . 3 . . 1 . . 1 2 2 1 4 2 1 17 2 4 1 . 1 Max in Single Turn 3 | . 2 . . 1 . . 1 1 1 1 1 1 1 1 1 3 . . 1 Garrison Relay 7 | . . . . . . . . 2 . . . 2 . . 2 . . . 1 Machines Sabotaged . | . . . . . . . . . . . . . . . . . . . . Garrisons Compromised . | . . . . . . . . . . . . . . . . . . . . Overloaded Fab Kills . | . . . . . . . . . . . . . . . . . . . . Fab Network Shutdowns . | . . . . . . . . . . . . . . . . . . . . Hacking | -11 -10 -10 -9 -9 -9 -8 -8 -8 -8 -7 -7 -7 -7 -5 -5 -4 -3 -2 -2 --------- Run | Scr Mat Min Mat Min Exi Min Mat Gar Mat Fac Sto Gar Rec Fac Gar Fac Res Res Gar Machines Accessed 24 | . 1 . 4 . 1 . 2 . 1 3 6 . 2 2 . 1 . 1 . Terminals 16 | . 1 . 4 . . . 1 . 1 2 5 . 1 1 . . . . . Fabricators 1 | . . . . . . . . . . . . . . . . 1 . . . Repair Stations . | . . . . . . . . . . . . . . . . . . . . Recycling Units 1 | . . . . . . . . . . . . . 1 . . . . . . Scanalyzers . | . . . . . . . . . . . . . . . . . . . . Garrison Access 5 | . . . . . . . 1 . . 1 1 . . 1 . . . 1 . Total Hacks 35 | . 2 . 8 . 1 . 4 . 1 4 9 . 2 2 . 1 . 1 . Successful 18 | . 1 . 2 . 1 . 2 . 1 3 4 . 2 1 . . . 1 . Failed 17 | . 1 . 6 . . . 2 . . 1 5 . . 1 . 1 . . . Catastrophic 4 | . . . 1 . . . 1 . . . 1 . . 1 . . . . . Database Lockouts . | . . . . . . . . . . . . . . . . . . . . Manual 20 | . 2 . 7 . 1 . 3 . 1 1 4 . 1 . . . . . . Terminals 27 | . 2 . 8 . . . 3 . 1 3 8 . 1 1 . . . . . Fabricators 1 | . . . . . . . . . . . . . . . . 1 . . . Repair Stations . | . . . . . . . . . . . . . . . . . . . . Recycling Units 1 | . . . . . . . . . . . . . 1 . . . . . . Scanalyzers . | . . . . . . . . . . . . . . . . . . . . Garrison Access 5 | . . . . . . . 1 . . 1 1 . . 1 . . . 1 . Terminal Hacks 12 | . 1 . 2 . 1 . 1 . 1 2 3 . 1 . . . . . . Open Door 2 | . . . . . . . . . . . 2 . . . . . . . . Branch Access Points 5 | . 1 . 1 . . . 1 . . 1 . . 1 . . . . . . Terminal Index 2 | . . . . . . . . . 1 . 1 . . . . . . . . Locate Traps 1 | . . . . . . . . . . 1 . . . . . . . . . Hauler Manifests 1 | . . . 1 . . . . . . . . . . . . . . . . EX-Prototype ID Bank 1 | . . . . . 1 . . . . . . . . . . . . . . Fabricator Hacks . | . . . . . . . . . . . . . . . . . . . . Repair Station Hacks . | . . . . . . . . . . . . . . . . . . . . Recycling Unit Hacks . | . . . . . . . . . . . . . . . . . . . . Scanalyzer . | . . . . . . . . . . . . . . . . . . . . Garrison Access Hacks 5 | . . . . . . . 1 . . 1 1 . . 1 . . . 1 . Unlock Access 4 | . . . . . . . 1 . . . 1 . . 1 . . . 1 . Coupler Status 1 | . . . . . . . . . . 1 . . . . . . . . . Unauthorized Hacks 1 | . . . . . . . . . . . . . 1 . . . . . . Terminals . | . . . . . . . . . . . . . . . . . . . . Fabricators . | . . . . . . . . . . . . . . . . . . . . Repair Stations . | . . . . . . . . . . . . . . . . . . . . Recycling Units 1 | . . . . . . . . . . . . . 1 . . . . . . Tunnel 1 | . . . . . . . . . . . . . 1 . . . . . . Scanalyzers . | . . . . . . . . . . . . . . . . . . . . Garrison Access . | . . . . . . . . . . . . . . . . . . . . Data Cores Recovered . | . . . . . . . . . . . . . . . . . . . . Used . | . . . . . . . . . . . . . . . . . . . . Hacking Detections 15 | . . . 3 . . . 2 . . 2 3 . 1 2 . 1 . 1 . Full Trace Events 1 | . . . . . . . . . . . 1 . . . . . . . . Feedback Events . | . . . . . . . . . . . . . . . . . . . . Feedback Blocked . | . . . . . . . . . . . . . . . . . . . . Robot Schematics Acquired . | . . . . . . . . . . . . . . . . . . . . Robots Built . | . . . . . . . . . . . . . . . . . . . . Matter . | . . . . . . . . . . . . . . . . . . . . Time . | . . . . . . . . . . . . . . . . . . . . Total Robot Build Rating . | . . . . . . . . . . . . . . . . . . . . Part Schematics Acquired . | . . . . . . . . . . . . . . . . . . . . Parts Built . | . . . . . . . . . . . . . . . . . . . . Matter . | . . . . . . . . . . . . . . . . . . . . Time . | . . . . . . . . . . . . . . . . . . . . Total Part Build Rating . | . . . . . . . . . . . . . . . . . . . . Parts Repaired . | . . . . . . . . . . . . . . . . . . . . Time . | . . . . . . . . . . . . . . . . . . . . Parts Recycled . | . . . . . . . . . . . . . . . . . . . . Recycled Matter . | . . . . . . . . . . . . . . . . . . . . Retrieved Matter . | . . . . . . . . . . . . . . . . . . . . Retrieved Components . | . . . . . . . . . . . . . . . . . . . . Parts Scanalyzed . | . . . . . . . . . . . . . . . . . . . . Part Schematics Acquired . | . . . . . . . . . . . . . . . . . . . . Parts Damaged . | . . . . . . . . . . . . . . . . . . . . Bothacking | -11 -10 -10 -9 -9 -9 -8 -8 -8 -8 -7 -7 -7 -7 -5 -5 -4 -3 -2 -2 ------------ Run | Scr Mat Min Mat Min Exi Min Mat Gar Mat Fac Sto Gar Rec Fac Gar Fac Res Res Gar Used RIF Installer 3 | . . . . . . . . 1 . . . 1 . . 1 . . . . Coupler Efficiency 1 | . . . . . . . . . . . . 1 . . . . . . . Robot Detection 1 | . . . . . . . . . . . . . . . 1 . . . . Robots Hacked 41 | . . . . . . . . . . 7 11 . . 5 5 6 7 . . Non-combat 22 | . . . . . . . . . . 7 5 . . 4 . 1 5 . . Combat 19 | . . . . . . . . . . . 6 . . 1 5 5 2 . . Robot Hacks Applied 49 | . . . . . . . . . . 7 14 . . 7 8 6 7 . . parse_system 1 | . . . . . . . . . . . 1 . . . . . . . . no_distress 2 | . . . . . . . . . . . 1 . . 1 . . . . . generate_echo 1 | . . . . . . . . . . . . . . . . . 1 . . map_walls 5 | . . . . . . . . . . 2 . . . 1 . . 2 . . map_earth 3 | . . . . . . . . . . 1 . . . . . . 2 . . drop_inventory 5 | . . . . . . . . . . 1 2 . . 1 . 1 . . . ignore_parts 2 | . . . . . . . . . . 1 1 . . . . . . . . purge_threat 4 | . . . . . . . . . . . 1 . . 3 . . . . . map_route 1 | . . . . . . . . . . 1 . . . . . . . . . find_shortcuts 1 | . . . . . . . . . . . . . . . 1 . . . . link_fov 1 | . . . . . . . . . . 1 . . . . . . . . . tweak_propulsion 1 | . . . . . . . . . . . 1 . . . . . . . . link_complan 1 | . . . . . . . . . . . . . . . 1 . . . . broadcast_data 1 | . . . . . . . . . . . . . . . 1 . . . . spike_heat 2 | . . . . . . . . . . . 1 . . . . 1 . . . amplify_resonance 1 | . . . . . . . . . . . . . . . 1 . . . . disable_weapons 3 | . . . . . . . . . . . 1 . . . 2 . . . . go_dormant 1 | . . . . . . . . . . . 1 . . . . . . . . overwrite_iff 7 | . . . . . . . . . . . 3 . . . 1 2 1 . . formatsys_high 6 | . . . . . . . . . . . 1 . . 1 1 2 1 . . Relay Couplers Released 35 | . . . . . . . . 10 . . 4 8 . . 9 . . . 4 Machine Destruction 31 | . . . . . . . . 10 . . . 8 . . 9 . . . 4 Programmers 4 | . . . . . . . . . . . 4 . . . . . . . . Attached 17 | . . . . . . . . . . 1 5 . 1 1 3 3 2 . 1 Robots Rewired 1 | . . . . . . . . . . . . . . . . 1 . . . Allies Hacked . | . . . . . . . . . . . . . . . . . . . . Hacks Repelled . | . . . . . . . . . . . . . . . . . . . . Allies | -11 -10 -10 -9 -9 -9 -8 -8 -8 -8 -7 -7 -7 -7 -5 -5 -4 -3 -2 -2 -------- Run | Scr Mat Min Mat Min Exi Min Mat Gar Mat Fac Sto Gar Rec Fac Gar Fac Res Res Gar Total Allies 19 | . . 3 . . . . . . . . 6 . . 1 2 5 2 . . Largest Group 3 | . . 3 3 . . . . . . . 3 . . 1 1 2 1 1 1 Highest-Rated Group 120 | . . 40 40 . . . . . . . 120 . . 49 49 105 64 64 64 Highest-Rated Ally 99 | . . 16 16 . . . . . . . 99 . . 49 49 58 64 64 64 Total Orders . | . . . . . . . . . . . . . . . . . . . . Ally Attacks 146 | . . 1 15 . . . . . . . 82 . . 9 10 16 6 . 7 Total Damage 4156 | . . 16 205 . . . . . . . 1411 . . 997 403 542 391 . 191 Kills 37 | . . . 1 . . . . . . . 17 . . 7 5 4 2 . 1 Allies Corrupted . | . . . . . . . . . . . . . . . . . . . . Allies Melted . | . . . . . . . . . . . . . . . . . . . . Intel | -11 -10 -10 -9 -9 -9 -8 -8 -8 -8 -7 -7 -7 -7 -5 -5 -4 -3 -2 -2 ------- Run | Scr Mat Min Mat Min Exi Min Mat Gar Mat Fac Sto Gar Rec Fac Gar Fac Res Res Gar Robot Analysis Total . | . . . . . . . . . . . . . . . . . . . . Derelict Logs Recovered 4 | . . 2 . 2 . . . . . . . . . . . . . . . Drone Launches . | . . . . . . . . . . . . . . . . . . . . Drone Recoveries . | . . . . . . . . . . . . . . . . . . . . Exploration | -11 -10 -10 -9 -9 -9 -8 -8 -8 -8 -7 -7 -7 -7 -5 -5 -4 -3 -2 -2 ------------- Run | Scr Mat Min Mat Min Exi Min Mat Gar Mat Fac Sto Gar Rec Fac Gar Fac Res Res Gar Turns Passed 17593 | 140 945 1008 1038 840 411 436 984 643 1380 1723 1889 1361 601 1232 726 1567 267 33 369 Spaces Moved 8377 | 82 497 613 514 472 342 359 433 276 549 723 835 619 294 517 317 618 129 19 169 Core 33 | 3 . . . . . . . . . . . . . . . . . . 30 Treads 6018 | 79 497 613 514 70 . . 215 276 549 723 835 619 294 293 49 193 41 19 139 Legs 508 | . . . . . . . . . . . . . . . 83 425 . . . Wheels 1818 | . . . . 402 342 359 218 . . . . . . 224 185 . 88 . . Hover . | . . . . . . . . . . . . . . . . . . . . Flight . | . . . . . . . . . . . . . . . . . . . . Fastest Speed 50 | 50 160 160 160 120 120 120 110 190 190 181 181 178 192 130 130 150 130 155 50 Average Speed 169 | 155 160 160 167 129 120 120 149 190 207 188 181 179 192 185 170 186 151 155 136 Slowest Speed 270 | 160 160 160 180 200 120 120 200 190 230 190 181 192 192 260 270 270 172 155 180 Overloaded Moves . | . . . . . . . . . . . . . . . . . . . . Propulsion Burnouts . | . . . . . . . . . . . . . . . . . . . . Robots Hopped . | . . . . . . . . . . . . . . . . . . . . Cave-ins Triggered . | . . . . . . . . . . . . . . . . . . . . Exploration Rate (%) 49 | 5 96 97 47 61 69 79 44 51 42 19 93 61 65 13 39 19 6 . 36 Regions Visited 19 Branch Regions 6 Pre-discovered Areas 3 | . . 1 . 1 . . . . . . . . 1 . . . . . . Known Exits Taken 10 | . 1 . 1 . . 1 1 . . 1 1 . 1 1 . . 1 1 . Unknown Exits Taken 6 | 1 . 1 . 1 1 . . . 1 . . . . . . 1 . . . Scrap Searched 4 | . . 2 . 1 . 1 . . . . . . . . . . . . . Spaces Dug 28 | . . . . . . . . . . 3 16 4 . 4 1 . . . . Terrain Destroyed 206 | . . . . 9 . . 7 8 3 17 24 4 2 38 14 64 7 . 9 Melee 28 | . . . . . . . . . . 3 16 4 . 4 1 . . . . Projectile 31 | . . . . . . . . . 3 4 . . 2 6 3 12 . . 1 AOE 147 | . . . . 9 . . 7 8 . 10 8 . . 28 10 52 7 . 8 Actions | -11 -10 -10 -9 -9 -9 -8 -8 -8 -8 -7 -7 -7 -7 -5 -5 -4 -3 -2 -2 --------- Run | Scr Mat Min Mat Min Exi Min Mat Gar Mat Fac Sto Gar Rec Fac Gar Fac Res Res Gar Total 10379 | 91 571 628 615 591 342 363 644 367 666 912 1064 758 315 674 438 857 188 22 273 Wait 463 | . 12 7 23 23 . . 76 49 13 44 43 20 . 8 16 46 26 . 57 Move 8355 | 81 496 612 513 471 341 358 432 274 548 722 834 617 293 516 315 617 128 18 169 Hop . | . . . . . . . . . . . . . . . . . . . . Pick Up 138 | 4 6 1 11 4 1 2 19 8 14 11 17 11 . 3 11 12 2 . 1 Fast Attach 67 | 6 3 . 3 2 . . 9 1 1 3 . . 1 12 3 16 4 2 1 Attach 92 | . . . 4 5 . . 11 . 5 5 7 3 1 12 7 24 6 1 1 Detach 42 | . . . 2 . . . 7 . 1 2 4 . . 11 2 7 4 1 1 Swap 110 | . 2 . 4 2 . . 8 3 9 13 24 7 3 12 9 11 1 . 2 Drop 102 | . 7 . 6 1 . 1 17 8 9 9 14 7 . 7 . 6 1 . 9 Fire 881 | . 45 8 49 83 . 2 65 19 66 91 92 71 17 85 55 111 2 . 20 Melee 62 | . . . . . . . . . . 8 28 4 . 6 2 . 14 . . Ram 1 | . . . . . . . . . . . . . . 1 . . . . . Kick 1 | . . . . . . . . . . . . . . . . 1 . . . Crush 2 | . . . . . . . . . . . . . . 1 . 1 . . . Escape Stasis 54 | . . . . . . . . 5 . 4 . 10 . . 18 5 . . 12 Rewire 9 | . . . . . . . . . . . 1 8 . . . . . . . Trap . | . . . . . . . . . . . . . . . . . . . . Miscellaneous . | . . . . . . . . . . . . . . . . . . . . Route ------- -11/Scrapyard -10/Materials (discovered 4 exits: *Mat x3 / *Min) -10/Mines (discovered 2 exits: *Mat x2) -9/Materials (discovered 4 exits: *Mat x2 / *Min x2) -9/Mines (discovered 4 exits: *Mat x2 / *Exi / [*Zio]) -9/Exiles -8/Mines -8/Materials (discovered 4 exits: *Fac x3 / Gar) -8/Garrison -8/Materials (discovered 2 exits: *Fac x2) -7/Factory (discovered 4 exits: *Sto x2 / *Low x2) -7/Storage (discovered 2 exits: [*Fac] / Gar) -7/Garrison (discovered 2 exits: *Rec x2) -7/Recycling -5/Factory -5/Garrison -4/Factory -3/Research -2/Research -2/Garrison History --------- Turn | Location | Event 4 | -11/Scrapyard | Discovered new exit (range 16) 141 | -11/Scrapyard | Entered Materials 202 | -10/Materials | Identified exit to Mines 315 | -10/Materials | Build established: Mutant 430 | -10/Materials | Discovered new exit (range 7) 615 | -10/Materials | Discovered new exit (range 11) 960 | -10/Materials | Discovered new exit (range 14) 1086 | -10/Materials | Entered Mines 1157 | -10/Mines | Learned location of Zion (-7) 1484 | -10/Mines | Discovered new exit (range 16) 1806 | -10/Mines | Discovered new exit (range 7) 1848 | -10/Mines | Assisted by bots powering up and referring to "LRC-V3" 1870 | -10/Mines | Learned 2 Materials zone layouts 2094 | -10/Mines | Entered Materials 2094 | -9/Materials | Accompanied by 3 allies 2094 | -9/Materials | Evolved 2 slots: Utility x2 2095 | -9/Materials | Identified exit to Materials 2208 | -9/Materials | Discovered new exit (range 8) 2502 | -9/Materials | Discovered exit to Materials (range 3) 2772 | -9/Materials | Identified exit to Mines 3132 | -9/Materials | Entered Mines 3141 | -9/Mines | Met a Derelict bent on vengeance 3164 | -9/Mines | Discovered exit to Materials (range 15) 3202 | -9/Mines | Assembled infested the area 3363 | -9/Mines | Found a damaged Exp. Sensor Array with a note attached 3366 | -9/Mines | Found Prototype Device 3681 | -9/Mines | Deemed a non-threat by the Exiles lab entrance 3682 | -9/Mines | Discovered new exit (range 5) 3828 | -9/Mines | A Derelict revealed a hidden shortcut to a safe place 3850 | -9/Mines | Discovered exit to Materials (range 5) 3972 | -9/Mines | Entered Exiles 4002 | -9/Exiles | Met 8R-AWN 4022 | -9/Exiles | Met EX-HEX 4080 | -9/Exiles | Met EX-DEC 4107 | -9/Exiles | Visited The Gauntlet 4202 | -9/Exiles | Met EX-BIN 4218 | -9/Exiles | Aligned with FarCom system 4220 | -9/Exiles | Given EX-Vault access code 4248 | -9/Exiles | Opened EX-Vault 4257 | -9/Exiles | Found YOLO Cannon 4282 | -9/Exiles | Warned to stay clear of 0b10 Research branches 4368 | -9/Exiles | Discovered new exit (range 14) 4383 | -9/Exiles | Left Exiles lab with YOLO Cannon 4383 | -9/Exiles | Entered Mines 4808 | -8/Mines | Discovered exit to Materials (range 7) 4819 | -8/Mines | Entered Materials 4819 | -8/Materials | Evolved 2 slots: Utility x2 4820 | -8/Materials | Identified Exp. Sensor Array 5103 | -8/Materials | Discovered new exit (range 19) 5109 | -8/Materials | Build established: Hauler-Mutant 5168 | -8/Materials | Lost 3 parts (1p1n1u) 5262 | -8/Materials | Lost 3 parts (1p1n1w) 5623 | -8/Materials | Discovered new exit (range 14) 5757 | -8/Materials | Discovered new exit (range 20) 5793 | -8/Materials | Identified exit to Garrison 5803 | -8/Materials | Entered Garrison 5813 | -8/Garrison | Installed Relay Interface Framework 5893 | -8/Garrison | Garrison Relay disabled 5910 | -8/Garrison | Triggered checkpoint 6234 | -8/Garrison | Triggered checkpoint 6292 | -8/Garrison | Discovered new exit (range 10) 6332 | -8/Garrison | Triggered checkpoint 6372 | -8/Garrison | Garrison Relay disabled 6446 | -8/Garrison | Entered Materials 6689 | -8/Materials | Garrison activated, responded to threat 6894 | -8/Materials | Discovered new exit (range 10) 7594 | -8/Materials | Discovered new exit (range 10) 7826 | -8/Materials | Entered Factory 7826 | -7/Factory | Evolved 2 slots: Propulsion x1, Utility x1 7827 | -7/Factory | Identified exit to Lower Caves 8206 | -7/Factory | Identified exit to Storage 9305 | -7/Factory | Build established: Bothacker-Mutant 9377 | -7/Factory | Found Prototype Launcher 9379 | -7/Factory | Identified Rocket Array 9549 | -7/Factory | Entered Storage 9560 | -7/Storage | Met 01-MTF 10653 | -7/Storage | Found 01-MTF's Shockpuncher 10658 | -7/Storage | Found Prototype Device 10782 | -7/Storage | Discovered new exit (range 5) 10960 | -7/Storage | Build established: Hauler-Mutant 11369 | -7/Storage | System corruption reached 10% 11424 | -7/Storage | Identified exit to Garrison 11438 | -7/Storage | Entered Garrison 11460 | -7/Garrison | Triggered checkpoint 11463 | -7/Garrison | Core integrity fell below 50% 11542 | -7/Garrison | Triggered checkpoint 11585 | -7/Garrison | Garrison Relay disabled 11688 | -7/Garrison | Triggered checkpoint 11770 | -7/Garrison | Triggered checkpoint 11925 | -7/Garrison | Garrison Relay disabled 12004 | -7/Garrison | Discovered new exit (range 14) 12245 | -7/Garrison | Build established: Bothacker-Mutant 12419 | -7/Garrison | Identified exit to Recycling 12660 | -7/Garrison | Triggered checkpoint 12769 | -7/Garrison | Discovered exit to Recycling (range 5) 12790 | -7/Garrison | Expanded RIF knowledge: Coupler Efficiency 12799 | -7/Garrison | Entered Recycling 12823 | -7/Recycling | Spotter reported a threat 12829 | -7/Recycling | Spotter reported a threat 12864 | -7/Recycling | Spotter reported a threat 12876 | -7/Recycling | Spotter reported a threat 12894 | -7/Recycling | Spotter reported a threat 12907 | -7/Recycling | Spotter reported a threat 12929 | -7/Recycling | Spotter reported a threat 12998 | -7/Recycling | Spotter reported a threat 13021 | -7/Recycling | Spotter reported a threat 13042 | -7/Recycling | Spotter reported a threat 13059 | -7/Recycling | Spotter reported a threat 13075 | -7/Recycling | Spotter reported a threat 13078 | -7/Recycling | Spotter reported a threat 13104 | -7/Recycling | Spotter reported a threat 13112 | -7/Recycling | Spotter reported a threat 13128 | -7/Recycling | Spotter reported a threat 13151 | -7/Recycling | Spotter reported a threat 13157 | -7/Recycling | Spotter reported a threat 13175 | -7/Recycling | Spotter reported a threat 13183 | -7/Recycling | Spotter reported a threat 13204 | -7/Recycling | Spotter reported a threat 13251 | -7/Recycling | Spotter reported a threat 13257 | -7/Recycling | Spotter reported a threat 13278 | -7/Recycling | Spotter reported a threat 13320 | -7/Recycling | Spotter reported a threat 13332 | -7/Recycling | Spotter reported a threat 13341 | -7/Recycling | Discovered new exit (range 11) 13375 | -7/Recycling | Spotter reported a threat 13387 | -7/Recycling | Spotter reported a threat 13388 | -7/Recycling | Spotter reported a threat 13398 | -7/Recycling | Identified exit to Factory 13400 | -7/Recycling | Entered Factory 13400 | -5/Factory | Evolved 4 slots: Utility x3, Weapon x1 13403 | -5/Factory | Identified 01-MTF's Autohacker 14000 | -5/Factory | First assault squad dispatched 14167 | -5/Factory | Lost 4 parts (1n2u1w) 14419 | -5/Factory | Build established: Hauler-Mutant 14631 | -5/Factory | Identified exit to Garrison 14632 | -5/Factory | Entered Garrison 14639 | -5/Garrison | Expanded RIF knowledge: Robot Detection 14694 | -5/Garrison | Triggered checkpoint 14695 | -5/Garrison | Garrison Relay disabled 14848 | -5/Garrison | Triggered checkpoint 14895 | -5/Garrison | Triggered checkpoint 14903 | -5/Garrison | Discovered new exit (range 10) 14935 | -5/Garrison | Build established: Bothacker-Mutant 14950 | -5/Garrison | Triggered checkpoint 15008 | -5/Garrison | Lost 4 parts (1p2n1w) 15262 | -5/Garrison | Garrison Relay disabled 15358 | -5/Garrison | Entered Factory 15358 | -4/Factory | Evolved 2 slots: Power x1, Utility x1 15608 | -4/Factory | First assault squad dispatched 15828 | -4/Factory | Lost 3 parts (1n2w) 15948 | -4/Factory | Discovered new exit (range 12) 15993 | -4/Factory | Lost 4 parts (2n1u1w) 16158 | -4/Factory | Lost 7 parts (2p1n1u3w) 16234 | -4/Factory | Found Prototype Processor 16234 | -4/Factory | Identified Exp. Signal Interpreter 16507 | -4/Factory | Lost 3 parts (1u2w) 16646 | -4/Factory | System corruption reached 10% 16678 | -4/Factory | Garrison activated, responded to threat 16705 | -4/Factory | Lost 5 parts (1p1u3w) 16770 | -4/Factory | Lost 6 parts (3u3w) 16925 | -4/Factory | Entered Research 16925 | -3/Research | Evolved 2 slots: Propulsion x1, Weapon x1 16991 | -3/Research | Discovered new exit (range 15) 17123 | -3/Research | Identified exit to Research 17192 | -3/Research | Entered another Research area 17192 | -2/Research | Accompanied by 1 ally 17192 | -2/Research | Evolved 2 slots: Propulsion x1, Utility x1 17223 | -2/Research | Identified exit to Garrison 17225 | -2/Research | Entered Garrison 17225 | -2/Garrison | Accompanied by 1 ally 17288 | -2/Garrison | Triggered checkpoint 17326 | -2/Garrison | Garrison Relay disabled 17516 | -2/Garrison | Spotted B-90 Cyclops 17526 | -2/Garrison | Triggered checkpoint 17575 | -2/Garrison | Core integrity fell below 50% 17590 | -2/Garrison | Core integrity fell below 20% 17594 | -2/Garrison | Destroyed by S-43 Plague with Heavy Machine Gun Last Messages --------------- 17575_ A bubble of rippling energy engulfs the area. 17575_ Field strength at 94. 17576_ Field strength at 88. 17577_ Field strength at 82. 17578_ Field strength at 76. 17579_ Field strength at 70. 17580_ Field strength at 52. 17581_ Field strength at 33. 17582_ Field strength at 20. 17583_ Field strength at 2. 17584_ Stasis field depleted. 17584_ Triggered Stasis Trap. 17584_ A bubble of rippling energy engulfs the area. 17584_ Field strength at 94. 17584_ Field strength at 83. 17585_ Field strength at 58. 17586_ Adv. Targeting Computer destroyed. 17586_ Field strength at 46. 17587_ Field strength at 10. 17588_ Stasis field depleted. Map ----- +----------------------------------------------------+ | ?????????????????????????????????????????????????? | | ?????????????????????????????????????????????????? | | ?????????????????????????????????????????????????? | | ?????????????????????????????????????????????????? | | ?????????????????????????????????????????????????? | | ?????????????????????????????????????????????????? | | ?????????????????????????????????????????????????? | | ?????????????????????????????????????????????????? | | ?????????????????????????????????????????????????? | | ?????????????????????????????????????????????????? | | ?????????????????????????????????????????????????? | | ?????????????????????????????????????????????????? | | ????????????????g? ??????????????????????????????? | | ????????????????g? ??????????????????????????????? | | ????????????????g? ??????????????????????????????? | | ?????????????????? ??????????????????????????????? | | ?????????????????? ??????????????????????????????? | | ?????????????????? ??????????????????????????????? | | ?????????????????? ??????????????????????????????? | | ?????????????????# #?????????????????????????????? | | ?????????????????# #????????#????????????????????? | | ?????????????????# #??????? #????????????????????? | | ?????? ??????????# #??????? #????????????????????? | | ?????# ??????????# #?????? #????????????????????? | | ?????# ########### ####### #????????????????????? | | ?????# ssss @ #????????????????????? | | ?????# s s s ss #????????????????????? | | ?????# ???#+#### s##########????????????????????? | | ?????# ????s???#s #?????????????????????????????? | | ?????# ????????#ss#?????????????????????????????? | | ?????# ????????# #?????????????????????????????? | | ?????# ????????# #?????????????????????????????? | | ?????# ????????#h #?????????????????????????????? | | """ ## ##??????#h #?????????????????????????????? | | ######## #?????????????????????????????? | | s #?????????????????????????????? | | #?????????????????????????????? | | ## ###########?????????????????????????????? | | ###?????????????????????????????????????? | | #?????????????????????????????????????? | | #?????????????????????????????????????? | | #?????????????????????????????????????? | | [ ! #?????????????????????????????????????? | | =!###?????????????????????????????????????? | | !!=#########??????????????????????????????? | | * ]!!! #??????????????????????????????? | | =% !!// * #??????????????????????????????? | | !##"#### #??????????????????????????????? | | """"## ##?##??# #??????????????????????????????? | | ?????# #??????# #??????????????????????????????? | +----------------------------------------------------+ Best States ------------- Heat Dissipation 119 Energy Generation 39 Energy Capacity 410 Matter Stores 300 Matter Capacity 500 Sight Range 20 Terrain Scan Density 110 Base Temperature (-) 200 Armor Coverage 600 Core Shielding 20 Weapon Cycling 30 Evasion (%) 50 Targeting Accuracy 8 Recoil Reduction 4 Particle Charging 25 Defensive Hacking 10 Item Schematics ----------------- None Robot Schematics ------------------ None Fabricated ------------ Nothing Alien Tech Used ----------------- None Achievements -------------- Gun Specialist Challenges ------------ None Game ------ Seed ShockMolecularPit Manual? 0 Play Time 02:08:04 Cumulative 219.1 hours Start 2020.05.10 @ 14:51:19 End 2020.05.11 @ 13:08:27 Sessions 3 Manual Loads 0 Difficulty Rogue Special Mode None Game No. 344 Rogue 344 Adventurer 0 Explorer 0 Win Type - Total 4 Types 2/0/1/1/0/0/0 Lore% 76 Gallery% 75 Achievement% 57 Wizard Run 0 Options --------- ASCII 0 Keyboard 1 Movement Numpad Keybinds 0 Fullscreen 2 Font 18/X11Bold Map View 76x50 Tactical HUD 1 Map Filters NONE Filters NONE Steam 1 RUN: 749bf31e-3eb6-4cba-b2c7-55e5a0f9feaf